fUSD/lending_fUSD_20240618
["ID","MTS","AMOUNT","RATE_DAILY","PERIOD"]
[329822681,1718704002815,-150.0,0.00013998,2]
[329822682,1718704002842,-19850.0,0.00014,2]
[329822683,1718704008413,-27703.0,0.00014,2]
[329822698,1718704232117,-1723.49402903,0.00013899,2]
[329822702,1718704232380,-1348.82146599,0.00013899,2]
[329822703,1718704232393,-442.27075883,0.00013899,2]
[329822707,1718704232721,-12136.9302136,0.00013899,2]
[329822710,1718704232750,-581.3857254,0.00013899,2]
[329822788,1718704238053,-3357.13522475,0.00013899,2]
[329822789,1718704238063,-349.04324037,0.000139,2]
[329822790,1718704238073,-195.50132898,0.000139,2]
[329822791,1718704238083,-538.11587011,0.00013999,2]
[329822792,1718704238093,-20606.20679116,0.00014,2]
[329822793,1718704238540,-1561.62093905,0.00014,2]
[329822794,1718704238553,-1128.596,0.00014,2]
[329822809,1718704240516,-343.27819998,0.00014,2]
[329822810,1718704240528,-492.12591951,0.00014,2]
[329822811,1718704240540,-320.10297877,0.00014,2]
[329822812,1718704240776,-552.33090042,0.00014,2]
[329822813,1718704240908,-1.24355483,0.00014,2]
[329822814,1718704240920,-3466.91092241,0.00014,2]
[329822815,1718704240932,-29097.22328486,0.00014,2]
[329822816,1718704240943,-1818.9,0.00014,2]
[329822817,1718704240955,-356.19588052,0.00014,2]
[329822832,1718704243142,-23342.14479907,0.00014,2]
[329822840,1718704243334,-293.44588129,0.00014,2]
[329822841,1718704243347,-547901.93001626,0.00014,2]
[329822851,1718704246479,-863.97726753,0.00014,2]
[329822852,1718704246491,-2518.74915113,0.00014,2]
[329822853,1718704246503,-960.80812001,0.00014,2]
[329822854,1718704246649,-322.8916,0.00014,2]
[329822855,1718704246661,-299.975,0.00014,2]
[329822953,1718704453803,219.0641798,0.0002299,120]
[329822962,1718705304787,-155.0,0.00010944,2]
[329822963,1718705304811,-430.27712576,0.00010945,2]
[329822964,1718705304832,-646.63503555,0.00010945,2]
[329822965,1718705304852,-503.81449866,0.00010947,2]
[329822966,1718705304874,-150.0,0.00010948,2]
[329822967,1718705304895,-13504.3976117,0.00010949,2]
[329822968,1718705304937,209.80347185,0.00010943,2]
[329822992,1718705389357,155.0,0.00010943,2]
[329822993,1718705396621,500000.0,0.00023,120]
[329822994,1718705399308,290.17190073,0.00010943,2]
[329822995,1718705409428,155.0,0.00010943,2]
[329822996,1718705411728,7544.54982485,0.00010943,2]
[329822997,1718705413934,291.13125295,0.00010943,2]
[329822998,1718705417701,155.0,0.00010943,2]
[329822999,1718705425590,7544.54982485,0.00010943,2]
[329823000,1718705429386,155.0,0.00010943,2]
[329823001,1718705429947,693.89615342,0.00013998,30]
[329823002,1718705432678,-521.0,0.00012562,2]
[329823003,1718705432687,-813.48792728,0.000133,2]
[329823004,1718705432697,-258.2666,0.000138,2]
[329823005,1718705432706,-414.21555173,0.0001382,2]
[329823006,1718705432716,-253.62978949,0.00013858,2]
[329823007,1718705432726,-2492.2696,0.0001386,2]
[329823008,1718705432736,-2355.93,0.0001387,2]
[329823009,1718705432746,-150.0,0.00013899,2]
[329823010,1718705432764,-300.0,0.00013899,2]
[329823011,1718705432775,-374.8776,0.000139,2]
[329823012,1718705432784,-277.887,0.000139,2]
[329823013,1718705432796,-486.81337377,0.000139,2]
[329823014,1718705432805,-3998.9371,0.000139,2]
[329823015,1718705432814,-46005.31736443,0.000139,2]
[329823016,1718705432826,-716.59388063,0.000139,2]
[329823017,1718705432839,-2657.0803135,0.000139,2]
[329823030,1718705433357,-23367.95144144,0.000139,2]
[329823031,1718705433367,-3510.731,0.000139,2]
[329823032,1718705433378,-189.27721259,0.000139,2]
[329823033,1718705433388,-59817.10114316,0.000139,2]
[329823034,1718705433400,-14939.97995684,0.000139,2]
[329823035,1718705433409,-305.37852158,0.000139,2]
[329823036,1718705433418,-696.58974524,0.000139,2]
[329823037,1718705433428,-1583.29,0.00013949,2]
[329823038,1718705433438,-9999.99,0.00013949,2]
[329823039,1718705433447,-383.08543461,0.00013958,2]
[329823040,1718705433457,-158.54784222,0.0001399,2]
[329823041,1718705433466,-669.96579635,0.00013998,2]
[329823042,1718705433475,-155.91270919,0.00013998,2]
[329823043,1718705433485,-155.0,0.00013998,2]
[329823044,1718705433494,-217.1710123,0.00013998,2]
[329823045,1718705433504,-155.79061023,0.00013998,2]
[329823046,1718705433515,-529.82691404,0.00013998,2]
[329823047,1718705433525,-155.0,0.00013998,2]
[329823048,1718705433535,-203.6768872,0.00013998,2]
[329823049,1718705433545,-180.28067388,0.00013998,2]
[329823050,1718705433556,-155.81399374,0.00013998,2]
[329823051,1718705433568,-400.0,0.00013998,2]
[329823052,1718705433577,-482.20345865,0.00013998,2]
[329823053,1718705433587,-176.22036334,0.00013998,2]
[329823054,1718705433596,-155.17031669,0.00013998,2]
[329823055,1718705433605,-155.0,0.00013998,2]
[329823056,1718705433615,-1528.30070898,0.00013998,2]
[329823057,1718705433624,-155.38397192,0.00013998,2]
[329823058,1718705433635,-156.18191407,0.00013998,2]
[329823059,1718705433644,-722.20467745,0.00013998,2]
[329823060,1718705433653,-631.19123031,0.00013998,2]
[329823061,1718705433662,-263.91864438,0.00013998,2]
[329823062,1718705433672,-472.26794574,0.00013998,2]
[329823063,1718705433681,-296.95413331,0.00013998,2]
[329823064,1718705433690,-3389.45183201,0.00013998,2]
[329823065,1718705433699,-277.83202736,0.00013998,2]
[329823066,1718705433709,-3790.97704598,0.00013998,2]
[329823067,1718705433718,-155.29324412,0.00013998,2]
[329823068,1718705433727,-155.0,0.00013998,2]
[329823069,1718705433737,-762.11180794,0.00013998,2]
[329823070,1718705433747,-9229.5095193,0.00013998,2]
[329823071,1718705433763,-410.0140434,0.00013998,2]
[329823072,1718705433773,-212.38539843,0.00013998,2]
[329823073,1718705433783,-561.93794192,0.00013998,2]
[329823074,1718705433792,-209.36331102,0.00013998,2]
[329823075,1718705433804,-429.85106562,0.00013998,2]
[329823076,1718705433813,-3565.22156148,0.00013999,2]
[329823077,1718705433823,-7815.77173616,0.00013999,2]
[329823078,1718705433834,-334220.2186693,0.00014,2]
[329823079,1718705433846,-318.64482262,0.00014,2]
[329823080,1718705433907,-75490.09572456,0.00014,2]
[329823081,1718705433920,-187328.6830069,0.00014,2]
[329823082,1718705433930,-20286.29635735,0.00014,2]
[329823083,1718705433939,-500.0,0.00014,2]
[329823084,1718705433949,-500.0,0.00014,2]
[329823085,1718705433959,-500.0,0.00014,2]
[329823086,1718705433968,-500.0,0.00014,2]
[329823087,1718705433978,-500.0,0.00014,2]
[329823088,1718705433988,-500.0,0.00014,2]
[329823089,1718705433998,-500.0,0.00014,2]
[329823090,1718705434007,-806.0,0.00014,2]
[329823091,1718705434017,-499.99,0.00014,2]
[329823092,1718705434026,-554.36,0.00014,2]
[329823093,1718705434036,-150.0,0.00014097,2]
[329823094,1718705434045,-23900.0,0.00014178,2]
[329823095,1718705434055,-200.0,0.00014323,2]
[329823096,1718705434064,-250.0,0.00014501,2]
[329823097,1718705434074,-305.37852152,0.00014757,2]
[329823098,1718705434083,-425.74,0.00014772,2]
[329823099,1718705434092,-521.0,0.00014826,2]
[329823100,1718705434101,-200.0,0.00014846,2]
[329823101,1718705434110,-286.59,0.00014846,2]
[329823102,1718705434120,-500.0,0.00015058,2]
[329823103,1718705434131,-181.49,0.00015107,2]
[329823104,1718705434140,-167.91,0.00015111,2]
[329823105,1718705434149,-210.0,0.00015289,2]
[329823106,1718705434158,-305.37852152,0.00015614,2]
[329823107,1718705434168,-250.0,0.00015618,2]
[329823108,1718705434177,-2492.26961,0.0001636,2]
[329823109,1718705434187,-305.37852152,0.00016471,2]
[329823110,1718705434196,-152.0,0.00016639,2]
[329823111,1718705434206,-1583.29,0.00016689,2]
[329823112,1718705434216,-696.58974522,0.000169,2]
[329823113,1718705434225,-521.0,0.0001709,2]
[329823114,1718705434235,-208.66770741,0.00017144,2]
[329823115,1718705434244,-161.36,0.00017298,2]
[329823116,1718705434253,-305.37852152,0.00017329,2]
[329823117,1718705434262,-161.36,0.00017346,2]
[329823118,1718705434270,-161.36,0.00017393,2]
[329823119,1718705434280,-161.36,0.0001744,2]
[329823120,1718705434289,-161.36,0.00017488,2]
[329823121,1718705434298,-916.03,0.00017528,2]
[329823122,1718705434308,-161.36,0.00017535,2]
[329823123,1718705434317,-165.3,0.00017574,2]
[329823124,1718705434327,-175.54,0.00017578,2]
[329823125,1718705434336,-161.36,0.00017583,2]
[329823126,1718705434345,-152.68,0.00017612,2]
[329823127,1718705434354,-165.3,0.00017618,2]
[329823128,1718705434364,-161.36,0.0001763,2]
[329823129,1718705434376,-165.3,0.00017662,2]
[329823130,1718705434390,-161.36,0.00017678,2]
[329823131,1718705434399,-161.36,0.00017725,2]
[329823132,1718705434408,-152.0,0.00017752,2]
[329823133,1718705434417,-161.36,0.00017773,2]
[329823134,1718705434426,-161.36,0.0001782,2]
[329823135,1718705434437,-161.36,0.00017867,2]
[329823136,1718705434455,-161.36,0.00017915,2]
[329823137,1718705434465,-161.36,0.00017962,2]
[329823138,1718705434475,-403.04460759,0.00017998,2]
[329823139,1718705434484,-161.36,0.0001801,2]
[329823140,1718705434494,-161.36,0.00018057,2]
[329823141,1718705434503,-161.36,0.00018105,2]
[329823142,1718705434514,-181.49,0.00018128,2]
[329823143,1718705434523,-161.36,0.00018152,2]
[329823144,1718705434532,-305.37852152,0.00018186,2]
[329823145,1718705434541,-161.36,0.000182,2]
[329823146,1718705434551,-566.0,0.000183,2]
[329823147,1718705434560,-2091.0,0.000184,2]
[329823148,1718705434570,-165.92564018,0.000188,2]
[329823149,1718705434580,-2492.26961,0.0001886,2]
[329823150,1718705434589,-152.0,0.00018866,2]
[329823151,1718705434599,-1302.30583545,0.00018998,2]
[329823152,1718705434608,-305.37852152,0.00019043,2]
[329823153,1718705434617,-77286.43237452,0.00019297,6]
[329823154,1718705435392,-374.10436896,0.00019297,6]
[329823155,1718705435404,-397.08384421,0.00019297,6]
[329823156,1718705435415,-1346.78709982,0.00019297,6]
[329823157,1718705435426,-2025.59405055,0.00019297,6]
[329823158,1718705435438,-2796.90567683,0.00019297,6]
[329823159,1718705435448,-18808.75,0.00019297,6]
[329823160,1718705435459,-35187.11265191,0.00019297,6]
[329823161,1718705435512,-60288.33895692,0.00019297,6]
[329823162,1718705435523,-945.02971513,0.00019297,6]
[329823163,1718705435534,-720.0,0.00019297,6]
[329823164,1718705435545,-446.2279107,0.00019297,6]
[329823165,1718705435557,-843.6035141,0.00019297,6]
[329823166,1718705436135,155.0,0.00010943,2]
[329823181,1718705438464,-1376.06375327,0.00019,2]
[329823182,1718705438477,-1698.02186945,0.00019,2]
[329823183,1718705438489,-2968.11445322,0.00019,2]
[329823184,1718705438500,-294.6974319,0.00019,2]
[329823185,1718705438757,-682.06550038,0.00019,2]
[329823186,1718705439332,-3475.13309198,0.00019,2]
[329823194,1718705441113,-341.58666032,0.00019,2]
[329823195,1718705441126,-1619.20385,0.00019,2]
[329823196,1718705441143,-461.75544879,0.00019,2]
[329823197,1718705441155,-308.94361421,0.00019,2]
[329823198,1718705441166,-727.11137031,0.00019,2]
[329823199,1718705441178,-2388.60864417,0.00019,2]
[329823201,1718705441446,-1188.30096382,0.00019,2]
[329823299,1718705443629,7544.54982485,0.00010943,2]
[329823300,1718705443865,-27332.77933436,0.00019,2]
[329823302,1718705443875,-500509.17983635,0.00019297,6]
[329823304,1718705443887,-20059.97084555,0.00019297,6]
[329823306,1718705443899,-5422.21794064,0.00019297,6]
[329823309,1718705443910,-486.91192548,0.00019297,6]
[329823311,1718705443921,-2119.82097135,0.00019297,6]
[329823314,1718705444429,-369.04818863,0.00019297,6]
[329823315,1718705444441,-453.24680004,0.00019297,6]
[329823316,1718705444454,-2034.2894002,0.00019297,6]
[329823317,1718705444466,-34128.49094204,0.00019297,6]
[329823319,1718705444477,-180469.92298607,0.00019297,6]
[329823321,1718705444487,-118821.14,0.00019297,6]
[329823323,1718705444498,-521.0,0.00019354,2]
[329823325,1718705444507,-1583.29,0.00019428,2]
[329823327,1718705444517,-1600.0,0.00019597,2]
[329823329,1718705444527,-500.0,0.00019597,2]
[329823357,1718705444781,-1100.0,0.00019597,2]
[329823359,1718705444791,-500.0,0.00019597,2]
[329823361,1718705444800,-1000.0,0.000197,2]
[329823363,1718705444810,-916.03,0.00019719,2]
[329823365,1718705444819,-499.99,0.00019719,2]
[329823367,1718705444829,-500.0,0.00019759,2]
[329823369,1718705444839,-500.0,0.00019768,2]
[329823371,1718705444852,-500.0,0.00019777,2]
[329823373,1718705444862,-500.0,0.00019786,2]
[329823375,1718705444871,-500.0,0.00019794,2]
[329823377,1718705444881,-500.0,0.00019803,2]
[329823379,1718705444892,-500.0,0.00019812,2]
[329823381,1718705444901,-500.0,0.00019821,2]
[329823383,1718705444911,-500.0,0.0001983,2]
[329823385,1718705444920,-500.0,0.00019838,2]
[329823387,1718705444930,-500.0,0.00019847,2]
[329823389,1718705444940,-500.0,0.00019856,2]
[329823391,1718705444950,-500.0,0.00019865,2]
[329823393,1718705444959,-500.0,0.00019874,2]
[329823395,1718705444968,-500.0,0.00019882,2]
[329823397,1718705444978,-500.0,0.00019891,2]
[329823400,1718705444988,-66803.53695929,0.00019898,2]
[329823402,1718705444997,-151.0,0.00019898,2]
[329823404,1718705445007,-151.0,0.00019898,2]
[329823406,1718705445017,-151.0,0.00019898,2]
[329823408,1718705445026,-151.0,0.00019898,2]
[329823409,1718705445035,-151.0,0.00019898,2]
[329823412,1718705445045,-151.0,0.00019898,2]
[329823414,1718705445055,-151.0,0.00019898,2]
[329823415,1718705445064,-898.829868,0.00019898,2]
[329823417,1718705445074,-151.0,0.00019898,2]
[329823420,1718705445083,-898.829868,0.00019898,2]
[329823421,1718705445092,-151.0,0.00019898,2]
[329823423,1718705445102,-156.167935,0.00019898,2]
[329823425,1718705445111,-151.0,0.00019898,2]
[329823427,1718705445120,-290.775224,0.00019898,2]
[329823429,1718705445130,-290.775224,0.00019898,2]
[329823432,1718705445141,-1460.65575295,0.00019899,2]
[329823434,1718705445151,-174.83982574,0.00019899,2]
[329823436,1718705445160,-696.58974522,0.00019899,2]
[329823438,1718705445170,-1460.65575287,0.00019899,2]
[329823439,1718705445179,-1460.65575287,0.00019899,2]
[329823442,1718705445188,-1460.65575287,0.00019899,2]
[329823444,1718705445198,-1460.65575287,0.00019899,2]
[329823446,1718705445207,-1460.65575287,0.00019899,2]
[329823447,1718705445216,-1460.65575287,0.000199,2]
[329823448,1718705445226,-1460.65575287,0.000199,2]
[329823449,1718705445235,-1460.65575287,0.000199,2]
[329823450,1718705445243,-1460.65575287,0.000199,2]
[329823451,1718705445253,-1460.65575287,0.000199,2]
[329823452,1718705445262,-1460.65575287,0.000199,2]
[329823453,1718705445271,-500.0,0.000199,2]
[329823454,1718705445280,-189.27721258,0.000199,2]
[329823455,1718705445289,-365.82353972,0.000199,2]
[329823456,1718705445298,-305.37852152,0.000199,2]
[329823457,1718705445307,-7131.80083489,0.000199,2]
[329823459,1718705445319,-185.34623022,0.000199,2]
[329823461,1718705445328,-569.0,0.0001997,15]
[329823462,1718705445338,-569.0,0.0001997,15]
[329823464,1718705445347,-210.0,0.0001997,15]
[329823466,1718705445358,-210.0,0.0001997,15]
[329823469,1718705445367,-152.0,0.00019979,2]
[329823471,1718705445377,-569.0,0.0001998,15]
[329823473,1718705445389,-569.0,0.0001998,15]
[329823475,1718705445398,-569.0,0.0001998,15]
[329823477,1718705445407,-576.52,0.0001998,15]
[329823479,1718705445416,-210.0,0.0001998,15]
[329823480,1718705445425,-210.0,0.0001998,15]
[329823483,1718705445435,-210.0,0.0001998,15]
[329823484,1718705445444,-214.5,0.0001998,15]
[329823486,1718705445454,-569.0,0.0001999,15]
[329823488,1718705445463,-569.0,0.0001999,15]
[329823490,1718705445472,-569.0,0.0001999,15]
[329823492,1718705445482,-569.0,0.0001999,15]
[329823494,1718705445491,-210.0,0.0001999,15]
[329823497,1718705445501,-210.0,0.0001999,15]
[329823499,1718705445511,-210.0,0.0001999,15]
[329823501,1718705445521,-210.0,0.0001999,15]
[329823503,1718705445530,-229.5,0.0001999,15]
[329823505,1718705445539,-158.54784222,0.0001999,2]
[329823507,1718705445548,-158.54784222,0.0001999,2]
[329823509,1718705445558,-193.29781389,0.00019998,2]
[329823511,1718705445567,-241.86774518,0.00019998,2]
[329823512,1718705445576,-158.50311314,0.00019998,2]
[329823515,1718705445586,-787.03385046,0.00019998,2]
[329823517,1718705445595,-506.80366576,0.00019998,2]
[329823518,1718705445604,-2847.23560753,0.00019998,2]
[329823521,1718705445614,-1625.30453105,0.00019998,2]
[329823522,1718705445624,-155.0,0.00019998,2]
[329823524,1718705445633,-3067.01080739,0.00019998,2]
[329823526,1718705445644,-1956.2379987,0.00019998,2]
[329823528,1718705445653,-155.0,0.00019998,2]
[329823530,1718705445662,-250560.51208206,0.00019999,2]
[329823533,1718705445671,-151.0,0.00019999,2]
[329823535,1718705445680,-151.0,0.00019999,2]
[329823537,1718705445690,-151.0,0.00019999,2]
[329823539,1718705445699,-151.0,0.00019999,2]
[329823541,1718705445709,-151.934485,0.00019999,2]
[329823543,1718705445718,-151.0,0.00019999,2]
[329823545,1718705445728,-151.0,0.00019999,2]
[329823547,1718705445737,-151.0,0.00019999,2]
[329823549,1718705445747,-151.0,0.00019999,2]
[329823551,1718705445762,-175.965339,0.00019999,2]
[329823553,1718705445771,-151.0,0.00019999,2]
[329823555,1718705445780,-151.0,0.00019999,2]
[329823557,1718705445789,-151.0,0.00019999,2]
[329823559,1718705445799,-153.064095,0.00019999,2]
[329823561,1718705445809,-151.0,0.00019999,2]
[329823563,1718705445819,-152.525172,0.00019999,2]
[329823565,1718705445828,-151.0,0.00019999,2]
[329823567,1718705445838,-151.0,0.00019999,2]
[329823569,1718705445852,-151.0,0.00019999,2]
[329823571,1718705445862,-151.0,0.00019999,2]
[329823573,1718705445871,-151.0,0.00019999,2]
[329823575,1718705445881,-151.0,0.00019999,2]
[329823577,1718705445891,-151.0,0.00019999,2]
[329823579,1718705445900,-151.0,0.00019999,2]
[329823581,1718705445910,-151.0,0.00019999,2]
[329823583,1718705445920,-291.361016,0.00019999,2]
[329823585,1718705445929,-151.0,0.00019999,2]
[329823587,1718705445940,-186.960318,0.00019999,2]
[329823589,1718705445949,-151.0,0.00019999,2]
[329823591,1718705445959,-151.0,0.00019999,2]
[329823593,1718705445968,-151.0,0.00019999,2]
[329823595,1718705445977,-151.0,0.00019999,2]
[329823597,1718705445987,-151.0,0.00019999,2]
[329823599,1718705445996,-179.280745,0.00019999,2]
[329823601,1718705446005,-151.0,0.00019999,2]
[329823603,1718705446015,-151.0,0.00019999,2]
[329823605,1718705446025,-151.0,0.00019999,2]
[329823607,1718705446034,-342.260302,0.00019999,2]
[329823609,1718705446045,-151.0,0.00019999,2]
[329823611,1718705446055,-342.260302,0.00019999,2]
[329823613,1718705446064,-151.0,0.00019999,2]
[329823615,1718705446074,-151.0,0.00019999,2]
[329823617,1718705446083,-151.0,0.00019999,2]
[329823619,1718705446093,-151.0,0.00019999,2]
[329823621,1718705446102,-151.0,0.00019999,2]
[329823623,1718705446112,-151.0,0.00019999,2]
[329823625,1718705446122,-898.829868,0.00019999,2]
[329823627,1718705446131,-898.829868,0.00019999,2]
[329823629,1718705446142,-151.0,0.00019999,2]
[329823631,1718705446151,-151.0,0.00019999,2]
[329823633,1718705446162,-151.0,0.00019999,2]
[329823635,1718705446171,-151.0,0.00019999,2]
[329823637,1718705446180,-151.0,0.00019999,2]
[329823640,1718705446190,-151.0,0.00019999,2]
[329823642,1718705446199,-151.0,0.00019999,2]
[329823645,1718705446209,-290.775224,0.00019999,2]
[329823647,1718705446219,-290.775224,0.00019999,2]
[329823649,1718705446228,-151.0,0.00019999,2]
[329823651,1718705446237,-151.0,0.00019999,2]
[329823653,1718705446247,-500.0,0.00019999,2]
[329823655,1718705446257,-241.38223022,0.00019999,2]
[329823657,1718705446268,-163.97501436,0.00019999,2]
[329823659,1718705446277,-500.0,0.00019999,2]
[329823661,1718705446288,-379.78851004,0.00019999,2]
[329823663,1718705446298,-164.54650474,0.00019999,2]
[329823665,1718705446308,-500.0,0.00019999,2]
[329823667,1718705446317,-500.0,0.00019999,2]
[329823669,1718705446327,-165.40600797,0.00019999,2]
[329823671,1718705446336,-270.39600113,0.00019999,2]
[329823673,1718705446346,-500.0,0.00019999,2]
[329823675,1718705446355,-500.0,0.00019999,2]
[329823677,1718705446366,-441.53634957,0.00019999,2]
[329823679,1718705446375,-500.0,0.00019999,2]
[329823682,1718705446385,-500.0,0.00019999,2]
[329823684,1718705446397,-500.0,0.00019999,2]
[329823686,1718705446406,-504489.14168192,0.0002,2]
[329823749,1718705446979,-234621.50301145,0.0002,2]
[329823752,1718705446990,-3149.28260556,0.0002,2]
[329823754,1718705447002,-1668.02297108,0.0002,2]
[329823756,1718705447014,-3596.82027941,0.0002,2]
[329823758,1718705447025,-9062.95150189,0.0002,2]
[329823868,1718705448154,-1401.02695355,0.0002,2]
[329823870,1718705448165,-508.5,0.0002,2]
[329823872,1718705448176,-1870.81694732,0.0002,2]
[329823875,1718705448188,-2693.4448,0.0002,2]
[329823877,1718705448200,-1348.24207892,0.0002,2]
[329823879,1718705448211,-4654.61803241,0.0002,2]
[329823885,1718705448256,155.0,0.00010943,2]
[329823894,1718705448330,-1608.65019031,0.0002,2]
[329823896,1718705448342,-348.5255592,0.0002,2]
[329823898,1718705448354,-15478.41705377,0.0002,2]
[329823901,1718705448365,-777293.90054285,0.0002,2]
[329823903,1718705448376,-12115.36860853,0.0002,2]
[329823905,1718705448388,-2660.93003738,0.0002,2]
[329823907,1718705448402,-984.745,0.0002,2]
[329823942,1718705448715,693.89615342,0.00019998,30]
[329823975,1718705455688,258.35575869,0.00010943,2]
[329823976,1718705463546,7544.54982485,0.00010943,2]
[329823977,1718705463840,693.89615342,0.00019999,30]
[329823978,1718705465533,244.95604221,0.00010943,2]
[329823979,1718705483937,6320.45310153,0.00010943,2]
[329823980,1718705487829,693.89615342,0.00019999,30]
[329823981,1718705507980,693.89615342,0.00019998,30]
[329823982,1718705513469,-65147.0,0.00023,120]
[329823983,1718705531863,526.6787366,0.00019998,30]
[329823988,1718705724375,693.89615342,0.00019998,30]
[329823989,1718705743905,693.89615342,0.00019998,30]
[329823990,1718705748421,155.55477495,0.00019998,30]
[329823991,1718705761868,693.89615342,0.00019998,30]
[329823992,1718705785880,693.89615342,0.00019998,30]
[329823993,1718705801869,693.89615342,0.00019998,30]
[329823994,1718705817878,693.89615342,0.00019998,30]
[329823995,1718705834906,693.89615342,0.00019998,30]
[329823996,1718705853878,693.89615342,0.00019998,30]
[329823997,1718705869893,634.94610668,0.00019998,30]
[329824024,1718706632002,-462.53216332,0.0001628,2]
[329824025,1718706632014,-1772.47332282,0.0001628,2]
[329824026,1718706632022,-458.71,0.00016281,2]
[329824027,1718706632030,-387.51832949,0.00017798,2]
[329824028,1718706632038,-298.47864126,0.00017998,2]
[329824029,1718706632045,-436.67,0.00018196,2]
[329824030,1718706632054,-150.0,0.0001824,2]
[329824031,1718706632062,-150.0,0.0001824,2]
[329824032,1718706632069,-5214.39906121,0.00018241,2]
[329824033,1718706632079,-18685.60093879,0.00018241,2]
[329824034,1718706632087,-27924.17,0.00018241,2]
[329824035,1718706632095,-219.05,0.00018248,2]
[329824036,1718706632102,-2291.82,0.00018248,6]
[329824037,1718706632115,-499.99,0.00018248,2]
[329824038,1718706632121,-780.06,0.00018258,2]
[329824039,1718706632129,-250.0,0.00018263,2]
[329824040,1718706632137,-189.28,0.00018266,2]
[329824041,1718706632146,-150.0,0.00018286,2]
[329824042,1718706632155,-152.68,0.00018402,2]
[329824043,1718706632163,-250.0,0.00018412,2]
[329824044,1718706632171,-150.14,0.00018462,2]
[329824045,1718706632179,-458.71,0.00018544,2]
[329824046,1718706632187,-150.14,0.00018569,2]
[329824047,1718706632195,-150.14,0.00018676,2]
[329824048,1718706632204,-168.27,0.00018742,2]
[329824049,1718706632212,-1038.74,0.0001878,2]
[329824050,1718706632220,-150.14,0.00018782,2]
[329824051,1718706632228,-826.55,0.0001886,2]
[329824052,1718706632237,-150.14,0.00018889,2]
[329824053,1718706632245,-150.14,0.00018996,2]
[329824054,1718706632253,-30000.0,0.00019,2]
[329824055,1718706632261,-835.54,0.00019043,2]
[329824056,1718706632269,-150.14,0.00019103,2]
[329824057,1718706632278,-150.14,0.0001921,2]
[329824058,1718706632286,-150.14,0.00019317,2]
[329824059,1718706632292,-150.14,0.00019424,2]
[329824060,1718706632300,-1000.0,0.00019597,2]
[329824061,1718706632307,-500.0,0.00019597,2]
[329824065,1718706632317,-500.0,0.00019597,2]
[329824067,1718706632324,-1500.0,0.00019597,2]
[329824070,1718706632332,-382.84586015,0.00019762,2]
[329824072,1718706632339,-1000.0,0.000198,2]
[329824074,1718706632345,-500.0,0.00019812,2]
[329824076,1718706632352,-500.0,0.00019821,2]
[329824077,1718706632360,-500.0,0.0001983,2]
[329824078,1718706632367,-500.0,0.00019838,2]
[329824079,1718706632374,-500.0,0.00019847,2]
[329824080,1718706632381,-500.0,0.00019856,2]
[329824081,1718706632388,-500.0,0.00019865,2]
[329824082,1718706632396,-500.0,0.00019874,2]
[329824083,1718706632403,-500.0,0.00019882,2]
[329824084,1718706632410,-500.0,0.00019891,2]
[329824085,1718706632417,-173.63595365,0.00019898,2]
[329824086,1718706632425,-1302.71391373,0.00019898,2]
[329824087,1718706632434,-2500.0,0.00019898,2]
[329824088,1718706632444,-1302.71391373,0.00019898,2]
[329824089,1718706632453,-1302.71391373,0.00019899,2]
[329824090,1718706632462,-1302.71391373,0.00019899,2]
[329824091,1718706632472,-173.63595363,0.00019899,2]